fUST/lending_fUST_20260408
["ID","MTS","AMOUNT","RATE_DAILY","PERIOD"]
[420016994,1775616649948,-151.0,0.00021918,2]
[420016996,1775616649957,-212.625352,0.00021918,2]
[420016998,1775616649967,-152.366151,0.00021918,2]
[420017000,1775616649976,-151.0,0.00021918,2]
[420017002,1775616649986,-151.0,0.00021918,2]
[420017004,1775616649996,-151.0,0.00021918,2]
[420017006,1775616650006,-151.0,0.00021918,2]
[420017008,1775616650015,-151.0,0.00021918,2]
[420017009,1775616650025,-245.38828,0.00021918,2]
[420017010,1775616650034,-151.0,0.00021918,2]
[420017011,1775616650044,-151.0,0.00021918,2]
[420017012,1775616650053,-151.0,0.00021918,2]
[420017013,1775616650062,-151.0,0.00021918,2]
[420017014,1775616650071,-151.0,0.00021918,2]
[420017015,1775616650080,-151.0,0.00021918,2]
[420017016,1775616650089,-151.0,0.00021918,2]
[420017017,1775616650099,-151.0,0.00021918,2]
[420017018,1775616650108,-151.0,0.00021918,2]
[420017019,1775616650118,-151.0,0.00021918,2]
[420017020,1775616650129,-151.0,0.00021918,2]
[420017021,1775616650138,-229.367429,0.00021918,2]
[420017022,1775616650148,-151.0,0.00021918,2]
[420017024,1775616650158,-151.0,0.00021918,2]
[420017026,1775616650171,-151.0,0.00021918,2]
[420017028,1775616650181,-151.0,0.00021918,2]
[420017030,1775616650191,-151.0,0.00021918,2]
[420017032,1775616650200,-151.0,0.00021918,2]
[420017034,1775616650211,-151.0,0.00021918,2]
[420017036,1775616650220,-151.0,0.00021918,2]
[420017039,1775616650231,-151.0,0.00021918,2]
[420017041,1775616650241,-151.0,0.00021918,2]
[420017043,1775616650250,-151.0,0.00021918,2]
[420017045,1775616650260,-227.014839,0.00021918,2]
[420017047,1775616650269,-151.0,0.00021918,2]
[420017049,1775616650278,-151.0,0.00021918,2]
[420017051,1775616650288,-151.0,0.00021918,2]
[420017053,1775616650298,-151.0,0.00021918,2]
[420017055,1775616650308,-239.85467,0.00021918,2]
[420017057,1775616650318,-425.139474,0.00021918,2]
[420017059,1775616650328,-425.139474,0.00021918,2]
[420017061,1775616650338,-425.139474,0.00021918,2]
[420017063,1775616650347,-425.139474,0.00021918,2]
[420017065,1775616650356,-425.139474,0.00021918,2]
[420017067,1775616650366,-425.139474,0.00021918,2]
[420017069,1775616650377,-425.139474,0.00021918,2]
[420017071,1775616650386,-425.139474,0.00021918,2]
[420017073,1775616650397,-425.139474,0.00021918,2]
[420017075,1775616650406,-425.139474,0.00021918,2]
[420017077,1775616650416,-425.139474,0.00021918,2]
[420017079,1775616650426,-425.139474,0.00021918,2]
[420017082,1775616650436,-425.139474,0.00021918,2]
[420017084,1775616650445,-425.139474,0.00021918,2]
[420017086,1775616650455,-425.139474,0.00021918,2]
[420017088,1775616650464,-425.139474,0.00021918,2]
[420017090,1775616650474,-425.139474,0.00021918,2]
[420017092,1775616650483,-425.139474,0.00021918,2]
[420017094,1775616650492,-425.139474,0.00021918,2]
[420017096,1775616650501,-425.139467,0.00021918,2]
[420017098,1775616650510,-151.0,0.00021918,2]
[420017100,1775616650521,-151.0,0.00021918,2]
[420017102,1775616650531,-151.0,0.00021918,2]
[420017104,1775616650540,-151.0,0.00021918,2]
[420017106,1775616650549,-151.0,0.00021918,2]
[420017108,1775616650560,-154.555459,0.00021918,2]
[420017110,1775616650570,-154.322422,0.00021918,2]
[420017112,1775616650580,-151.120295,0.00021918,2]
[420017114,1775616650590,-151.0,0.00021918,2]
[420017116,1775616650600,-151.0,0.00021918,2]
[420017118,1775616650609,-158.045411,0.00021918,2]
[420017121,1775616650619,-184.882869,0.00021918,2]
[420017123,1775616650629,-184.882869,0.00021918,2]
[420017125,1775616650638,-184.882869,0.00021918,2]
[420017127,1775616650648,-184.882869,0.00021918,2]
[420017129,1775616650657,-184.882869,0.00021918,2]
[420017131,1775616650667,-184.882869,0.00021918,2]
[420017133,1775616650676,-184.882869,0.00021918,2]
[420017135,1775616650687,-184.882869,0.00021918,2]
[420017137,1775616650697,-184.882869,0.00021918,2]
[420017139,1775616650707,-184.882869,0.00021918,2]
[420017141,1775616650716,-184.882869,0.00021918,2]
[420017143,1775616650726,-184.882869,0.00021918,2]
[420017145,1775616650736,-184.882869,0.00021918,2]
[420017147,1775616650745,-184.882869,0.00021918,2]
[420017149,1775616650754,-184.882869,0.00021918,2]
[420017151,1775616650764,-184.882869,0.00021918,2]
[420017153,1775616650773,-184.882869,0.00021918,2]
[420017155,1775616650783,-184.882869,0.00021918,2]
[420017157,1775616650792,-184.882869,0.00021918,2]
[420017159,1775616650802,-184.882874,0.00021918,2]
[420017161,1775616650812,-151.0,0.00021918,2]
[420017163,1775616650822,-151.0,0.00021918,2]
[420017165,1775616650831,-151.0,0.00021918,2]
[420017167,1775616650841,-151.0,0.00021918,2]
[420017170,1775616650850,-151.0,0.00021918,2]
[420017172,1775616650860,-156.600876,0.00021918,2]
[420017174,1775616650869,-178.816035,0.00021918,2]
[420017176,1775616650879,-178.816035,0.00021918,2]
[420017177,1775616650887,-178.816035,0.00021918,2]
[420017179,1775616650897,-178.816035,0.00021918,2]
[420017181,1775616650906,-178.816035,0.00021918,2]
[420017183,1775616650916,-178.816035,0.00021918,2]
[420017185,1775616650925,-178.816035,0.00021918,2]
[420017187,1775616650935,-178.816035,0.00021918,2]
[420017189,1775616650944,-178.816035,0.00021918,2]
[420017192,1775616650954,-178.816035,0.00021918,2]
[420017194,1775616650964,-178.816035,0.00021918,2]
[420017196,1775616650973,-178.816035,0.00021918,2]
[420017198,1775616650982,-178.816035,0.00021918,2]
[420017200,1775616650991,-178.816035,0.00021918,2]
[420017202,1775616651002,-178.816035,0.00021918,2]
[420017204,1775616651011,-178.816035,0.00021918,2]
[420017206,1775616651021,-178.816035,0.00021918,2]
[420017208,1775616651031,-178.816035,0.00021918,2]
[420017210,1775616651041,-178.816035,0.00021918,2]
[420017212,1775616651050,-178.816036,0.00021918,2]
[420017214,1775616651060,-151.0,0.00021918,2]
[420017216,1775616651069,-151.0,0.00021918,2]
[420017218,1775616651078,-151.0,0.00021918,2]
[420017220,1775616651087,-151.0,0.00021918,2]
[420017222,1775616651096,-151.0,0.00021918,2]
[420017224,1775616651105,-151.0,0.00021918,2]
[420017226,1775616651114,-151.0,0.00021918,2]
[420017228,1775616651123,-151.0,0.00021918,2]
[420017230,1775616651133,-151.0,0.00021918,2]
[420017232,1775616651142,-151.0,0.00021918,2]
[420017234,1775616651151,-151.0,0.00021918,2]
[420017236,1775616651160,-151.0,0.00021918,2]
[420017238,1775616651170,-151.0,0.00021918,2]
[420017240,1775616651179,-151.0,0.00021918,2]
[420017242,1775616651188,-151.0,0.00021918,2]
[420017244,1775616651197,-151.0,0.00021918,2]
[420017246,1775616651207,-151.0,0.00021918,2]
[420017248,1775616651216,-155.001853,0.00021918,2]
[420017250,1775616651225,-159.106372,0.00021918,2]
[420017252,1775616651235,-151.0,0.00021918,2]
[420017254,1775616651244,-153.960559,0.00021918,2]
[420017256,1775616651253,-989.104988,0.00021918,2]
[420017259,1775616651263,-989.104988,0.00021918,2]
[420017261,1775616651273,-989.104988,0.00021918,2]
[420017263,1775616651282,-989.104988,0.00021918,2]
[420017265,1775616651291,-989.104988,0.00021918,2]
[420017267,1775616651300,-989.104988,0.00021918,2]
[420017269,1775616651309,-989.104988,0.00021918,2]
[420017271,1775616651318,-989.104988,0.00021918,2]
[420017273,1775616651329,-989.104988,0.00021918,2]
[420017275,1775616651339,-989.104988,0.00021918,2]
[420017277,1775616651349,-989.104988,0.00021918,2]
[420017279,1775616651358,-989.104988,0.00021918,2]
[420017281,1775616651368,-989.104988,0.00021918,2]
[420017283,1775616651377,-989.104988,0.00021918,2]
[420017285,1775616651386,-989.104988,0.00021918,2]
[420017287,1775616651396,-989.104988,0.00021918,2]
[420017289,1775616651405,-151.0,0.00021918,2]
[420017291,1775616651414,-160.011496,0.00021918,2]
[420017293,1775616651423,-151.0,0.00021918,2]
[420017295,1775616651432,-152.329125,0.00021918,2]
[420017297,1775616651441,-151.0,0.00021918,2]
[420017299,1775616651451,-152.711564,0.00021918,2]
[420017301,1775616651460,-151.0,0.00021918,2]
[420017303,1775616651469,-151.0,0.00021918,2]
[420017305,1775616651478,-151.0,0.00021918,2]
[420017307,1775616651488,-151.0,0.00021918,2]
[420017309,1775616651498,-157.638538,0.00021918,2]
[420017311,1775616651507,-151.0,0.00021918,2]
[420017313,1775616651517,-151.0,0.00021918,2]
[420017315,1775616651526,-151.0,0.00021918,2]
[420017317,1775616651535,-151.0,0.00021918,2]
[420017319,1775616651545,-151.0,0.00021918,2]
[420017321,1775616651554,-221.270648,0.00021918,2]
[420017323,1775616651564,-193.679225,0.00021918,2]
[420017325,1775616651573,-151.0,0.00021918,2]
[420017328,1775616651583,-151.0,0.00021918,2]
[420017329,1775616651592,-151.0,0.00021918,2]
[420017332,1775616651602,-151.0,0.00021918,2]
[420017334,1775616651612,-151.0,0.00021918,2]
[420017336,1775616651621,-151.0,0.00021918,2]
[420017338,1775616651631,-151.0,0.00021918,2]
[420017339,1775616651640,-151.0,0.00021918,2]
[420017341,1775616651649,-231.377657,0.00021918,2]
[420017343,1775616651658,-151.0,0.00021918,2]
[420017345,1775616651667,-151.0,0.00021918,2]
[420017347,1775616651676,-151.0,0.00021918,2]
[420017349,1775616651686,-151.0,0.00021918,2]
[420017352,1775616651695,-221.819068,0.00021918,2]
[420017354,1775616651705,-544.580156,0.00021918,2]
[420017356,1775616651714,-544.580156,0.00021918,2]
[420017358,1775616651724,-544.580156,0.00021918,2]
[420017360,1775616651733,-544.580156,0.00021918,2]
[420017361,1775616651742,-544.580156,0.00021918,2]
[420017363,1775616651751,-544.580156,0.00021918,2]
[420017365,1775616651760,-151.0,0.00021918,2]
[420017367,1775616651770,-544.580156,0.00021918,2]
[420017369,1775616651779,-151.0,0.00021918,2]
[420017371,1775616651787,-544.580156,0.00021918,2]
[420017373,1775616651797,-172.241893,0.00021918,2]
[420017375,1775616651806,-544.580156,0.00021918,2]
[420017377,1775616651815,-544.580156,0.00021918,2]
[420017379,1775616651824,-544.580156,0.00021918,2]
[420017382,1775616651834,-544.580156,0.00021918,2]
[420017384,1775616651843,-151.0,0.00021918,2]
[420017386,1775616651852,-154.647315,0.00021918,2]
[420017388,1775616651862,-151.0,0.00021918,2]
[420017390,1775616651871,-151.0,0.00021918,2]
[420017392,1775616651880,-153.230584,0.00021918,2]
[420017394,1775616651889,-172.062504,0.00021918,2]
[420017396,1775616651898,-172.062504,0.00021918,2]
[420017398,1775616651907,-172.062504,0.00021918,2]
[420017400,1775616651916,-172.062504,0.00021918,2]
[420017402,1775616651925,-172.062504,0.00021918,2]
[420017404,1775616651934,-172.062504,0.00021918,2]
[420017406,1775616651944,-172.062504,0.00021918,2]
[420017408,1775616651953,-172.062504,0.00021918,2]
[420017410,1775616651961,-172.062504,0.00021918,2]
[420017412,1775616651971,-172.062504,0.00021918,2]
[420017414,1775616651980,-172.062504,0.00021918,2]
[420017416,1775616651989,-172.062504,0.00021918,2]
[420017418,1775616651998,-172.062504,0.00021918,2]
[420017420,1775616652007,-172.062504,0.00021918,2]
[420017422,1775616652017,-172.062504,0.00021918,2]
[420017424,1775616652026,-172.062504,0.00021918,2]
[420017426,1775616652036,-152.66028,0.00021918,2]
[420017427,1775616652045,-172.062504,0.00021918,2]
[420017430,1775616652055,-172.062504,0.00021918,2]
[420017432,1775616652065,-172.062504,0.00021918,2]
[420017434,1775616652075,-172.062496,0.00021918,2]
[420017436,1775616652084,-151.0,0.00021918,2]
[420017438,1775616652093,-151.0,0.00021918,2]
[420017440,1775616652103,-151.0,0.00021918,2]
[420017442,1775616652112,-151.474494,0.00021918,2]
[420017444,1775616652121,-151.0,0.00021918,2]
[420017446,1775616652130,-151.0,0.00021918,2]
[420017448,1775616652139,-151.0,0.00021918,2]
[420017450,1775616652149,-151.0,0.00021918,2]
[420017452,1775616652158,-151.0,0.00021918,2]
[420017453,1775616652167,-151.0,0.00021918,2]
[420017455,1775616652177,-151.0,0.00021918,2]
[420017458,1775616652187,-151.0,0.00021918,2]
[420017460,1775616652196,-151.0,0.00021918,2]
[420017462,1775616652205,-221.83671,0.00021918,2]
[420017464,1775616652214,-1242.0,0.00021918,5]
[420017466,1775616652224,-151.0,0.00021918,2]
[420017468,1775616652233,-151.0,0.00021918,2]
[420017470,1775616652242,-240.949788,0.00021918,2]
[420017472,1775616652251,-151.0,0.00021918,2]
[420017474,1775616652261,-989.104988,0.00021918,2]
[420017476,1775616652270,-989.104988,0.00021918,2]
[420017478,1775616652280,-989.104988,0.00021918,2]
[420017480,1775616652290,-989.104993,0.00021918,2]
[420017482,1775616652299,-151.0,0.00021918,2]
[420017484,1775616652309,-151.0,0.00021918,2]
[420017486,1775616652319,-151.0,0.00021918,2]
[420017488,1775616652331,-151.0,0.00021918,2]
[420017490,1775616652340,-151.0,0.00021918,2]
[420017492,1775616652351,-151.0,0.00021918,2]
[420017494,1775616652361,-151.0,0.00021918,2]
[420017496,1775616652370,-151.0,0.00021918,2]
[420017498,1775616652380,-544.580156,0.00021918,2]
[420017500,1775616652389,-544.580156,0.00021918,2]
[420017502,1775616652398,-544.580156,0.00021918,2]
[420017504,1775616652407,-544.580156,0.00021918,2]
[420017507,1775616652417,-544.580156,0.00021918,2]
[420017509,1775616652427,-544.580156,0.00021918,2]
[420017511,1775616652436,-544.580156,0.00021918,2]
[420017513,1775616652445,-544.580164,0.00021918,2]
[420017515,1775616652455,-500.0,0.00021973,2]
[420017517,1775616652465,-500.0,0.00021973,2]
[420017519,1775616652474,-456.73963686,0.00021973,2]
[420017521,1775616652484,-500.0,0.00021973,2]
[420017523,1775616652493,-500.0,0.00021973,2]
[420017525,1775616652501,-500.0,0.00021973,2]
[420017527,1775616652510,-500.0,0.00021973,2]
[420017529,1775616652520,-500.0,0.00021973,2]
[420017531,1775616652529,-500.0,0.00021973,2]
[420017555,1775616652745,-253.50501592,0.00021973,2]
[420017557,1775616652756,-504.48325746,0.00021973,2]
[420017559,1775616652765,-501.40127799,0.00021973,2]
[420017561,1775616652775,-234.70828507,0.00021973,2]
[420017563,1775616652784,-500.0,0.00021973,2]
[420017565,1775616652794,-500.0,0.00021973,2]
[420017567,1775616652804,-500.0,0.00021973,2]
[420017569,1775616652814,-501.1052963,0.00021973,2]
[420017571,1775616652823,-500.0,0.00021973,2]
[420017573,1775616652833,-500.0,0.00021973,2]
[420017575,1775616652843,-500.0,0.00021973,2]
[420017577,1775616652852,-271.48338802,0.00021973,2]
[420017578,1775616652862,-501.95073592,0.00021973,2]
[420017581,1775616652872,-505.21029342,0.00021973,2]
[420017583,1775616652882,-150.44168987,0.00021973,2]
[420017585,1775616652892,-43235.14275677,0.00022,2]
[420017652,1775617281812,-300.0,0.00013288,2]
[420017653,1775617281844,-304.72702942,0.00013289,2]
[420017654,1775617281857,-300.0,0.00013289,2]
[420017655,1775617281870,-4395.27297058,0.00013289,2]
[420017656,1775617281883,-604.72702942,0.00013289,2]
[420017676,1775617832830,-428.08491366,0.00010618,2]
[420017678,1775617832841,-569.0,0.00010618,2]
[420017681,1775617832852,-300.0,0.00012893,2]
[420017682,1775617832863,-300.0,0.00012893,2]
[420017683,1775617832873,-1200.0,0.00012893,2]
[420017684,1775617832883,-5000.0,0.00012894,2]
[420017685,1775617832895,-1000.0,0.00013699,2]
[420017686,1775617832905,-1211.0,0.00014182,2]
[420017687,1775617832916,-160.0,0.00015964,5]
[420017688,1775617832926,-300.0,0.00018371,2]
[420017689,1775617832936,-1219.12057999,0.00019049,2]
[420017690,1775617832946,-1648.4468538,0.00019121,2]
[420017691,1775617832956,-1000.0,0.00019726,2]
[420017692,1775617832967,-1000.0,0.00019726,2]
[420017693,1775617832976,-3413.12789501,0.00019781,2]
[420017694,1775617832986,-1568.8,0.0001999,2]
[420017695,1775617832996,-15200.88501502,0.0002,2]
[420017861,1775617844023,-464.37193473,0.00019781,2]
[420017863,1775617844034,-2015.62806527,0.0002,2]
[420017865,1775617844048,-1240.0,0.0002,2]
[420017867,1775617844359,-256.2,0.0002,2]
[420017880,1775617847421,-7824.36314647,0.0002,2]
[420017881,1775617847438,-4310.17736062,0.0002,2]
[420018002,1775619038061,-872.06365179,0.00013024,2]
[420018003,1775619038074,-3676.78439392,0.00013024,2]
[420018004,1775619038087,-451.15195429,0.00013024,2]
[420018005,1775619038098,-300.0,0.00013156,2]
[420018006,1775619038109,-300.0,0.00013156,2]
[420018007,1775619038119,-300.0,0.00013156,2]
[420018008,1775619038130,-1200.0,0.00013156,2]
[420018009,1775619038140,-607.0,0.00013157,2]
[420018010,1775619038150,-1000.0,0.00013699,2]
[420018011,1775619038159,-4875.94855672,0.00014175,2]
[420018012,1775619038169,-9619.04561241,0.00014275,2]
[420018013,1775619038179,-300.0,0.00014425,2]
[420018014,1775619038189,-11946.70535654,0.00014475,2]
[420018015,1775619038199,-13110.53522865,0.00016902,2]
[420018016,1775619038209,-160.00547146,0.00017932,2]
[420018017,1775619038219,-167.5623079,0.00018666,2]
[420018018,1775619038229,-5133.5431841,0.00019242,2]
[420018019,1775619038239,-236.403612,0.0001932,2]
[420018020,1775619038249,-432.74917125,0.00019435,2]
[420018021,1775619038259,-14274.36510076,0.00019541,2]
[420018022,1775619038268,-194.2036764,0.00019781,2]
[420018023,1775619038279,-349.21705091,0.00019781,2]
[420018024,1775619038289,-4434.4219937,0.00019903,2]
[420018025,1775619038299,-1166.443371,0.00019903,2]
[420018026,1775619038309,-167.612,0.00019903,2]
[420018027,1775619038319,-237.3956649,0.00019903,2]
[420018028,1775619038328,-1431.2794395,0.00019903,2]
[420018029,1775619038339,-20264.16108871,0.0002,2]
[420018030,1775619038349,-1540.12282001,0.0002,2]
[420018031,1775619038361,-461.87717999,0.0002,2]
[420018032,1775619038371,-500.0,0.00020424,2]
[420018033,1775619038381,-574.79735083,0.00020424,2]
[420018034,1775619038391,-500.0,0.00020424,2]
[420018035,1775619038400,-500.0,0.00020424,2]
[420018036,1775619038410,-500.0,0.00020424,2]
[420018037,1775619038420,-500.0,0.00020424,2]
[420018038,1775619038430,-376.36225216,0.00020424,2]
[420018039,1775619038439,-500.0,0.00020424,2]
[420018040,1775619038450,-500.0,0.00020424,2]
[420018041,1775619038459,-500.0,0.00020424,2]
[420018042,1775619038469,-500.0,0.00020424,2]
[420018043,1775619038479,-500.0,0.00020424,2]
[420018044,1775619038488,-500.0,0.00020424,2]
[420018045,1775619038497,-500.0,0.00020424,2]
[420018046,1775619038510,-500.0,0.00020424,2]
[420018047,1775619038521,-500.0,0.00020424,2]
[420018048,1775619038531,-500.0,0.00020424,2]
[420018049,1775619038540,-500.0,0.00020424,2]
[420018050,1775619038550,-7945.94557263,0.00020425,2]
[420018051,1775619038562,-2866.49295455,0.00020425,2]
[420018069,1775619040814,-1202.22657072,0.00020425,2]
[420018071,1775619041068,-1175.66510949,0.00020425,2]
[420018072,1775619041081,-396.27900709,0.00020425,2]
[420018102,1775619043352,-336.33341679,0.00020424,2]
[420018104,1775619043660,-64.74334472,0.00020424,2]
[420018105,1775619043670,-8944.54989445,0.00020425,2]
[420018118,1775619046118,-7637.56141585,0.00020425,2]
[420018211,1775619338537,-388.60540204,9.8e-05,2]
[420018310,1775620015436,5000.0,9e-05,2]
[420018321,1775620200611,5000.0,9e-05,2]
[420018323,1775620223560,5000.0,9e-05,2]
[420018347,1775620232122,-300.0,9.6e-05,2]
[420018349,1775620232131,-167.52642622,9.6e-05,2]
[420018351,1775620232143,-386.47357378,9.6e-05,2]
[420018353,1775620232152,-793.08470219,0.0001,2]
[420018355,1775620232162,-471.95259845,0.0001,2]
[420018356,1775620232171,-896.90751283,0.00013699,2]
[420018374,1775620232434,-103.09248717,0.00013699,2]
[420018375,1775620232444,-289.98688673,0.00015472,2]
[420018376,1775620232454,-332.62900488,0.0001696,2]
[420018377,1775620232463,-747.66684572,0.0001696,2]
[420018378,1775620232474,-191.231266,0.00017251,2]
[420018379,1775620232483,-198.94819433,0.00017999,2]
[420018412,1775620238402,-612.05180567,0.00017999,2]
[420018414,1775620238411,-1064.74,0.00018,2]
[420018416,1775620238421,-10000.0,0.00018142,2]
[420018418,1775620238431,-167.613,0.00018142,2]
[420018420,1775620238440,-3577.2815652,0.00018497,2]
[420018422,1775620238450,-1210.2301606,0.00018497,2]
[420018424,1775620238459,-500.0,0.00019902,2]
[420018426,1775620238468,-500.0,0.00019999,2]
[420018428,1775620238478,-162.35571991,0.000204,2]
[420018430,1775620238487,-859.12185485,0.00020473,2]
[420018432,1775620238497,-12266.83971565,0.00020498,2]
[420018434,1775620238509,-2118.66704675,0.00020498,2]
[420018436,1775620238519,-3139.97818459,0.00020498,2]
[420019153,1775620246469,-4449.72363228,0.00020293,2]
[420020415,1775620880523,-300.0,0.00013424,2]
[420020416,1775620880578,-45.57051949,0.00013425,2]
[420020417,1775620909595,-300.0,0.00013425,2]
[420020660,1775621432328,-1200.0,9.899e-05,2]
[420020661,1775621432338,-4321.3879286,9.9e-05,2]
[420020662,1775621432351,-399.53935775,9.9e-05,2]
[420021645,1775621447678,-279.07271365,9.9e-05,2]
[420021647,1775621447688,-559.0,9.9e-05,2]
[420021649,1775621447697,-340.79428334,0.0001,2]
[420021651,1775621447707,-388.60540204,0.00012741,2]
[420021653,1775621447717,-300.0,0.00012869,2]
[420021655,1775621447727,-300.0,0.00012999,2]
[420021657,1775621447736,-10925.27732928,0.00013,2]
[420021661,1775621447764,-0.00160088,0.00013,2]
[420021663,1775621447775,-1844.32106984,0.00013,2]
[420021665,1775621447785,-1000.0,0.00013699,2]
[420021667,1775621447794,-185.8861555,0.0001696,2]
[420021669,1775621447803,-334.26048481,0.0001696,2]
[420021671,1775621447813,-240.801608,0.00018586,2]
[420021673,1775621447822,-178.1023618,0.00019453,2]
[420021676,1775621447832,-2290.82137717,0.00019475,2]
[420022849,1775622632536,-5000.0,0.00012139,2]
[420022851,1775622632546,-5000.0,0.00012262,2]
[420022853,1775622632557,-300.0,0.00012386,2]
[420022855,1775622632566,-1200.0,0.00012386,2]
[420022857,1775622632576,-595.0,0.00012387,2]
[420022859,1775622632586,-420.0,0.00013592,2]
[420022861,1775622632595,-289.18532504,0.00013625,2]
[420022998,1775622639006,-5000.0,0.00013489,2]
[420023000,1775622639017,-404.81467496,0.00013625,2]
[420023002,1775622639026,-1000.0,0.00013699,2]
[420023004,1775622639036,-683.85709539,0.00013699,2]
[420023366,1775622643256,-316.14290461,0.00013699,2]
[420023369,1775622643268,-793.6858478,0.00014175,2]
[420023711,1775622646894,-2563.91113179,0.00014175,2]
[420023713,1775622646904,-623.0,0.00014175,2]
[420023715,1775622646914,-4798.8000104,0.00014275,2]
[420023738,1775622647126,-300.0,0.00014275,2]
[420023740,1775622647140,-1975.7351362,0.00014275,2]
[420023742,1775622647150,-167.613,0.00014275,2]
[420023744,1775622647159,-7879.77847685,0.00014375,2]
[420023746,1775622647169,-151.0,0.00014474,2]
[420023748,1775622647178,-8312.75275002,0.00014475,2]
[420023750,1775622647187,-700.0,0.00016438,2]
[420023752,1775622647197,-4160.3328735,0.0001738,2]
[420023754,1775622647207,-178.1023619,0.0001738,2]
[420023756,1775622647216,-3603.79047604,0.00017511,2]
[420023758,1775622647227,-160.00547146,0.00017511,2]
[420023759,1775622647237,-288.00984863,0.00017511,2]
[420023761,1775622647246,-512.01750867,0.00017511,2]
[420023763,1775622647257,-800.0273573,0.00017511,2]
[420023765,1775622647267,-1150.88735512,0.00017511,2]
[420023767,1775622647276,-778.94850826,0.00017511,2]
[420023769,1775622647285,-1384.79734801,0.00017511,2]
[420023771,1775622647295,-2163.74585627,0.00017511,2]
[420023773,1775622647305,-3115.79403303,0.00017511,2]
[420023775,1775622647315,-4240.94187829,0.00017511,2]
[420023777,1775622647324,-500.0,0.00018,2]
[420023779,1775622647334,-1662.76000737,0.00018407,2]
[420023781,1775622647344,-500.0,0.00018432,2]
[420023784,1775622647356,-302.73262547,0.00018432,2]
[420023785,1775622647366,-340.13186919,0.00018433,2]
[420023788,1775622647376,-612.23736454,0.00018433,2]
[420023789,1775622647385,-1088.42198141,0.00018433,2]
[420023791,1775622647394,-1700.65934596,0.00018433,2]
[420023793,1775622647405,-2448.94945818,0.00018433,2]
[420023795,1775622647414,-858.67131375,0.00018939,2]
[420023797,1775622647426,-10436.83830821,0.00019,2]
[420023799,1775622647436,-178.086669,0.00019178,2]
[420023801,1775622647446,-245.42410252,0.00019403,2]
[420023803,1775622647458,-280.48468859,0.00019403,2]
[420023805,1775622647468,-438.25732592,0.00019403,2]
[420023807,1775622647477,-630.45945878,0.00019403,2]
[420023809,1775622647488,-2402.89136413,0.00019475,2]
[420023811,1775622647498,-928.2957403,0.00019581,2]
[420023813,1775622647508,-500.0,0.00019873,2]
[420023815,1775622647518,-500.0,0.00019873,2]
[420023817,1775622647527,-160.0,0.00019873,2]
[420023819,1775622647537,-295.39672521,0.00019873,2]
[420023821,1775622647546,-204.76399224,0.00019899,2]
[420023823,1775622647557,-160.0,0.00019899,2]
[420023825,1775622647567,-205.34064,0.00019899,2]
[420023827,1775622647576,-200.0,0.000199,2]
[420023829,1775622647589,-160.0,0.000199,2]
[420023831,1775622647598,-240.0,0.000199,2]
[420023833,1775622647608,-14158.40138682,0.0002,2]
[420023835,1775622647618,-3006.83506875,0.0002,2]
[420023837,1775622647628,-207.1307772,0.00020072,2]
[420023839,1775622647638,-10295.50846788,0.00020082,2]
[420023841,1775622647648,-200.0,0.00020082,2]
[420023843,1775622647659,-500.0,0.00020147,2]
[420023845,1775622647669,-661.0,0.00020339,7]
[420023847,1775622647679,-1171.16400223,0.00020401,2]
[420025547,1775623834850,-4608.03722137,0.00012359,2]
[420025550,1775623834863,-391.96277863,0.00012359,2]
[420025552,1775623834873,-595.0,0.00012359,2]